bitfinex-derivatives/quotes_BTCF0:USTF0_20250809
["timestamp","ask_amount","ask_price","bid_price","bid_amount"]
[1754733541132,0.05490283,117540.0,117530.0,1.3128173]
[1754733541333,0.05490283,117540.0,117530.0,1.65711711]
[1754733542128,0.05490283,117540.0,117530.0,1.3128173]
[1754733542329,0.05490283,117540.0,117530.0,1.65711711]
[1754733542536,0.02027283,117540.0,117530.0,1.65711711]
[1754733542831,0.05490283,117540.0,117530.0,1.65711711]
[1754733546147,0.05490283,117540.0,117530.0,1.73351708]
[1754733548746,0.05490283,117540.0,117530.0,1.37271708]
[1754733550752,0.05490283,117540.0,117530.0,1.54455139]
[1754733552051,0.11269283,117540.0,117530.0,1.54455139]
[1754733553151,0.05490283,117540.0,117530.0,1.54455139]
[1754733554046,0.02027283,117540.0,117530.0,1.54455139]
[1754733554550,0.05546283,117540.0,117530.0,1.54455139]
[1754733554749,0.03619,117540.0,117530.0,1.54455139]
[1754733554953,0.03619,117540.0,117530.0,1.38921727]
[1754733555143,0.03619,117540.0,117530.0,1.90535139]
[1754733555345,0.001,117540.0,117530.0,1.90535139]
[1754733555545,0.03619,117540.0,117530.0,1.90535139]
[1754733555852,0.01233983,117550.0,117540.0,0.1236929]
[1754733556054,0.01233983,117550.0,117540.0,0.89789408]
[1754733556351,0.01233983,117550.0,117540.0,1.25869408]
[1754733556950,0.01233983,117550.0,117540.0,1.33509405]
[1754733557151,0.0312275,117550.0,117540.0,1.33509405]
[1754733557658,0.0332275,117550.0,117540.0,1.33509405]
[1754733558459,0.0352275,117550.0,117540.0,1.33509405]
[1754733558657,0.0352275,117550.0,117540.0,0.90484273]
[1754733559158,0.0704175,117550.0,117540.0,0.90484273]
[1754733559451,0.0704175,117550.0,117540.0,0.82844276]
[1754733561156,0.0684175,117550.0,117540.0,0.82844276]
[1754733561354,0.0664175,117550.0,117540.0,0.90584273]
[1754733561559,0.0664175,117550.0,117540.0,0.90684273]
[1754733562457,0.04752983,117550.0,117540.0,0.90684273]
[1754733563554,0.01233983,117550.0,117540.0,0.87964273]
[1754733563859,0.04752983,117550.0,117540.0,0.90524273]
[1754733567261,0.01233983,117550.0,117540.0,0.90524273]
[1754733570064,0.04752983,117550.0,117540.0,0.90524273]
[1754733571863,0.01233983,117550.0,117540.0,1.17234273]
[1754733573758,0.01233983,117550.0,117540.0,1.09594276]
[1754733574164,0.01233983,117550.0,117540.0,0.7519929]
[1754733574463,0.01233983,117550.0,117540.0,1.09594276]
[1754733577168,0.04435983,117550.0,117540.0,1.09594276]
[1754733577361,0.04435983,117550.0,117540.0,0.82884276]
[1754733577672,0.04435983,117550.0,117540.0,0.935923]
[1754733577859,0.01233983,117550.0,117540.0,0.935923]
[1754733579269,0.04435983,117550.0,117540.0,0.935923]
[1754733579567,0.04435983,117550.0,117540.0,1.01223344]
[1754733579762,0.04435983,117550.0,117540.0,0.9051532]
[1754733580364,0.04435983,117550.0,117540.0,0.82884276]
[1754733580565,0.01233983,117550.0,117540.0,0.82884276]
[1754733580757,0.01233983,117550.0,117540.0,0.4848929]
[1754733580955,0.01233983,117550.0,117540.0,1.33507045]
[1754733581161,0.01233983,117550.0,117540.0,1.25874632]
[1754733581568,0.04435983,117550.0,117540.0,1.25874632]
[1754733582565,0.04435983,117550.0,117540.0,1.36582656]
[1754733583670,0.04435983,117550.0,117540.0,1.25874632]
[1754733588972,0.01233983,117550.0,117540.0,1.25874632]
[1754733589574,0.12697,117570.0,117560.0,0.0898277]
[1754733589773,0.15411,117570.0,117560.0,2.08552303]
[1754733590273,0.15411,117570.0,117560.0,1.81028998]
[1754733590977,0.15611,117570.0,117560.0,1.81028998]
[1754733591678,0.15811,117570.0,117560.0,1.81028998]
[1754733591877,0.15611,117570.0,117560.0,1.2953877]
[1754733592277,0.15411,117570.0,117560.0,1.81128998]
[1754733592975,0.15411,117570.0,117560.0,2.06924112]
[1754733594181,0.0933,117570.0,117560.0,2.06924112]
[1754733594382,0.15411,117570.0,117560.0,1.2953877]
[1754733594583,0.15411,117570.0,117560.0,2.06924112]
[1754733594782,0.15411,117570.0,117560.0,1.2953877]
[1754733594982,0.15411,117570.0,117560.0,1.81128998]
[1754733595682,0.15411,117570.0,117560.0,2.06924112]
[1754733595983,0.15411,117570.0,117560.0,1.37183914]
[1754733596184,0.15411,117570.0,117560.0,1.88774142]
[1754733596776,0.51495,117580.0,117570.0,0.00353]
[1754733597090,0.5999834,117580.0,117570.0,0.51943228]
[1754733597277,0.5999834,117580.0,117570.0,0.26148114]
[1754733597582,0.51495,117580.0,117570.0,0.67319785]
[1754733597978,0.51595,117580.0,117570.0,0.67319785]
[1754733598584,0.6019834,117580.0,117570.0,0.32667601]
[1754733598785,0.51695,117580.0,117570.0,0.67319785]
[1754733600386,0.51695,117580.0,117570.0,0.68452238]
[1754733600777,0.39482,117580.0,117570.0,0.68452238]
[1754733600978,0.51695,117580.0,117570.0,0.68452238]
[1754733601180,0.39482,117580.0,117570.0,0.68452238]
[1754733601389,0.03402,117580.0,117570.0,1.37972496]
[1754733601591,0.03402,117580.0,117570.0,1.12177382]
[1754733601792,0.03402,117580.0,117570.0,1.30327352]
[1754733601979,0.002,117580.0,117570.0,1.30327352]
[1754733602185,0.06156473,117600.0,117590.0,0.108327]
[1754733602383,0.00024473,117600.0,117590.0,1.73915042]
[1754733602591,0.00024473,117600.0,117590.0,1.48119928]
[1754733602992,0.00024473,117600.0,117590.0,1.73915042]
[1754733603299,0.42212,117620.0,117600.0,0.25641]
[1754733603589,0.42212,117620.0,117610.0,1.44455528]
[1754733603795,0.42212,117620.0,117610.0,1.45751528]
[1754733603998,0.48293,117620.0,117610.0,1.44455528]
[1754733604187,0.51495,117620.0,117610.0,1.44455528]
[1754733604695,0.51495,117620.0,117610.0,1.29520129]
[1754733604997,0.15715,117620.0,117610.0,1.29520129]
[1754733605789,0.16115,117620.0,117610.0,1.29520129]
[1754733605992,0.6069559,117620.0,117610.0,1.21018829]
[1754733606192,0.6069559,117620.0,117610.0,0.34363829]
[1754733606397,0.6069559,117620.0,117610.0,1.18555829]
[1754733607389,0.06592,117600.0,117580.0,0.3608]
[1754733607588,0.05987,117580.0,117570.0,0.1650907]
[1754733607900,0.15259,117580.0,117570.0,1.45885029]
[1754733608094,0.09166,117600.0,117590.0,0.086161]
[1754733608291,0.01816,117600.0,117590.0,2.19685858]
[1754733608493,0.01816,117600.0,117590.0,1.85322029]
[1754733608693,0.01916,117600.0,117590.0,1.85322029]
[1754733609996,0.003,117600.0,117590.0,1.85322029]
[1754733610194,0.003,117600.0,117590.0,2.19685858]
[1754733610393,0.003,117600.0,117590.0,1.85322029]
[1754733613497,0.03713,117600.0,117590.0,1.85322029]
[1754733615503,0.03713,117600.0,117590.0,1.509582]
[1754733615702,0.03713,117600.0,117590.0,1.85322029]
[1754733615899,0.003,117600.0,117590.0,1.85322029]
[1754733618596,0.002,117600.0,117590.0,1.85322029]
[1754733620103,0.15259,117610.0,117600.0,0.1387099]
[1754733620308,0.15259,117610.0,117600.0,0.84314819]
[1754733621511,0.15559,117610.0,117600.0,0.84314819]
[1754733622010,0.17421328,117610.0,117600.0,0.84314819]
[1754733622507,0.17521328,117610.0,117600.0,0.84314819]
[1754733622707,0.14947328,117610.0,117600.0,0.84314819]
[1754733623109,0.05675328,117610.0,117600.0,1.18678648]
[1754733623603,0.05675328,117610.0,117600.0,0.84314819]
[1754733623809,0.13155328,117610.0,117600.0,0.84314819]
[1754733624010,0.15350328,117610.0,117600.0,0.84314819]
[1754733624309,0.17521328,117610.0,117600.0,0.84314819]
[1754733624504,0.11768328,117610.0,117600.0,0.84314819]
[1754733624806,0.14947328,117610.0,117600.0,0.84314819]
[1754733625001,0.17521328,117610.0,117600.0,0.84314819]
[1754733625201,0.17521328,117610.0,117600.0,0.48234819]
[1754733625708,0.17521328,117610.0,117600.0,1.32242819]
[1754733626009,0.11768328,117610.0,117600.0,1.32242819]
[1754733626197,0.17521328,117610.0,117600.0,1.32242819]
[1754733628007,0.02262328,117610.0,117600.0,1.68322819]
[1754733628209,0.05675328,117610.0,117600.0,2.02686648]
[1754733630009,0.5308998,117630.0,117620.0,0.0850055]
[1754733630010,0.30280769,117630.0,117620.0,0.0850055]
[1754733630208,0.15639,117630.0,117620.0,1.46810009]
[1754733630413,0.15639,117630.0,117620.0,1.48547568]
[1754733631116,0.16139,117630.0,117620.0,1.48547568]
[1754733631310,0.16439,117630.0,117620.0,1.48547568]
[1754733632513,0.16439,117630.0,117620.0,1.14183739]
[1754733632712,0.16439,117630.0,117620.0,1.48547568]
[1754733633107,0.16439,117630.0,117620.0,1.14183739]
[1754733633415,0.16439,117630.0,117620.0,1.48547568]
[1754733635208,0.16439,117630.0,117620.0,1.14183739]
[1754733635409,0.16439,117630.0,117620.0,1.48547568]
[1754733635806,0.16439,117630.0,117620.0,1.14183739]
[1754733636008,0.16439,117630.0,117620.0,1.48547568]
[1754733636516,0.13865,117630.0,117620.0,1.48547568]
[1754733637408,0.0118,117630.0,117620.0,1.14183739]
[1754733637714,0.04586,117630.0,117620.0,1.48547568]
[1754733638214,0.0118,117630.0,117620.0,1.84627568]
[1754733639005,0.0118,117630.0,117620.0,1.50263739]
[1754733639211,0.0118,117630.0,117620.0,1.84627568]
[1754733639509,0.0098,117630.0,117620.0,1.84627568]
[1754733640816,0.006,117630.0,117620.0,1.50263739]
[1754733641016,0.006,117630.0,117620.0,1.84627568]
[1754733641313,0.002,117630.0,117620.0,1.84627568]
[1754733644722,0.2412283,117630.0,117620.0,1.00009568]
[1754733644911,0.2412283,117630.0,117620.0,1.47889568]
[1754733644912,0.15623,117630.0,117620.0,1.47889568]
[1754733645418,0.15623,117630.0,117620.0,1.50763568]
[1754733649717,0.15623,117630.0,117620.0,0.32559739]
[1754733649923,0.15623,117630.0,117620.0,1.50711568]
[1754733651419,0.15623,117630.0,117620.0,1.48974009]
[1754733652217,0.15623,117630.0,117620.0,1.50683961]
[1754733652822,0.15623,117630.0,117620.0,1.16320132]
[1754733653118,0.6020284,117630.0,117620.0,0.01709952]
[1754733653427,0.7720369,117630.0,117620.0,0.42864389]
[1754733654128,0.2392356,117620.0,117610.0,0.2763864]
[1754733654327,0.2392356,117620.0,117610.0,1.45866469]
[1754733656429,0.2392356,117620.0,117610.0,1.46050469]
[1754733656930,0.2392356,117620.0,117610.0,1.1168664]
[1754733657120,0.2392356,117620.0,117610.0,1.46050469]
[1754733657321,0.15423,117620.0,117610.0,1.48924469]
[1754733658423,0.15423,117620.0,117610.0,1.85004469]
[1754733660530,0.15423,117620.0,117610.0,0.65188469]
[1754733660825,0.14799251,117630.0,117620.0,0.1382155]
[1754733661019,0.01892251,117630.0,117620.0,0.48185379]
[1754733661219,0.05298251,117630.0,117620.0,0.1382155]
[1754733661531,0.05298251,117630.0,117620.0,0.84265379]
[1754733662031,0.05398251,117630.0,117620.0,0.84265379]
[1754733662426,0.05398251,117630.0,117620.0,0.4990155]
[1754733662627,0.05398251,117630.0,117620.0,0.84265379]
[1754733662924,0.08782251,117630.0,117620.0,0.84265379]
[1754733663133,0.05498251,117630.0,117620.0,0.84265379]
[1754733664535,0.17515251,117630.0,117620.0,0.84265379]
[1754733665323,0.17515251,117630.0,117620.0,0.4990155]
[1754733665527,0.17515251,117630.0,117620.0,0.84265379]
[1754733666431,0.17515251,117630.0,117620.0,0.48185379]
[1754733666732,0.17515251,117630.0,117620.0,0.84265379]
[1754733667137,0.17515251,117630.0,117620.0,0.4990155]
[1754733667330,0.17515251,117630.0,117620.0,0.84265379]
[1754733668135,0.05498251,117630.0,117620.0,0.48185379]
[1754733668429,0.05498251,117630.0,117620.0,0.84265379]
[1754733668634,0.26221081,117630.0,117620.0,0.48185379]
[1754733669534,0.17721251,117630.0,117620.0,0.48185379]
[1754733669835,0.26221081,117630.0,117620.0,1.31781379]
[1754733671137,0.26221081,117630.0,117620.0,0.1082755]
[1754733671428,0.62301081,117630.0,117620.0,0.9442755]
[1754733671632,0.62301081,117630.0,117620.0,0.9208055]
[1754733671833,0.1462055,117620.0,117610.0,1.61851873]
[1754733672029,0.2383455,117620.0,117610.0,1.54206729]
[1754733672533,0.2383455,117620.0,117610.0,1.56954729]
[1754733673036,0.2383455,117620.0,117610.0,1.64599873]
[1754733673436,0.2383455,117620.0,117610.0,1.37204209]
[1754733673938,0.2383455,117620.0,117610.0,1.37196209]
[1754733674639,0.2383455,117620.0,117610.0,1.47589353]
[1754733676037,0.2383455,117620.0,117610.0,1.39944209]
[1754733678337,0.2383455,117620.0,117610.0,1.0558038]
[1754733678537,0.2383455,117620.0,117610.0,1.39944209]
[1754733678938,0.2383455,117620.0,117610.0,0.53624209]
[1754733679138,0.2383455,117620.0,117610.0,1.39892209]
[1754733679338,0.15334,117620.0,117610.0,1.39892209]
[1754733679539,0.2383454,117620.0,117610.0,1.39892209]
[1754733679841,0.15334,117620.0,117610.0,1.39892209]
[1754733680033,0.2383454,117620.0,117610.0,1.39892209]
[1754733680435,0.2383454,117620.0,117610.0,0.9702712]
[1754733680633,0.2383454,117620.0,117610.0,1.31390949]
[1754733682140,0.2383454,117620.0,117610.0,0.9702712]
[1754733682330,0.5991454,117620.0,117610.0,1.31390949]
[1754733682535,0.5991454,117620.0,117610.0,0.8575]
[1754733683037,0.5991454,117620.0,117610.0,0.88444]
[1754733683436,0.5991454,117620.0,117610.0,1.22807829]
[1754733684038,0.2122926,117610.0,117600.0,0.45072809]
[1754733684240,0.15334,117610.0,117600.0,1.67322809]
[1754733684433,0.2383526,117610.0,117600.0,1.67322809]
[1754733685034,0.2383526,117610.0,117600.0,1.69028832]
[1754733685237,0.2383526,117610.0,117600.0,1.34865003]
[1754733685437,0.2383526,117610.0,117600.0,1.69228832]
[1754733685740,0.2383526,117610.0,117600.0,1.66634832]
[1754733686041,0.2383526,117610.0,117600.0,1.42610147]
[1754733686242,0.2383526,117610.0,117600.0,0.93497976]
[1754733686538,0.2383526,117610.0,117600.0,0.82301996]
[1754733686736,0.2383526,117610.0,117600.0,0.11858167]
[1754733686935,0.94279089,117610.0,117600.0,0.87657023]
[1754733687336,0.94279089,117610.0,117600.0,0.04213023]
[1754733687841,0.94279089,117610.0,117600.0,0.003]
[1754733688342,0.2383746,117580.0,117570.0,0.06872487]
[1754733688538,0.2383746,117580.0,117560.0,0.19137814]
[1754733688539,0.1462418,117570.0,117560.0,0.19137814]
[1754733688739,0.2383818,117570.0,117560.0,0.05682]
[1754733688941,0.2383818,117570.0,117560.0,0.1418691]
[1754733689142,0.2383818,117570.0,117560.0,0.02988]
[1754733689341,0.58202009,117570.0,117560.0,0.02988]
[1754733689950,0.58202009,117570.0,117560.0,0.03388]
[1754733690245,0.58202009,117570.0,117560.0,0.04421894]
[1754733690444,0.2383818,117570.0,117560.0,0.04721894]
[1754733690642,0.5991818,117570.0,117560.0,0.04721894]
[1754733691037,0.5991818,117570.0,117560.0,0.03940894]
[1754733691242,0.94282009,117570.0,117560.0,0.04240894]
[1754733691443,0.5991818,117570.0,117560.0,0.04240894]
[1754733691640,0.94282009,117570.0,117560.0,0.04721894]
[1754733691841,0.58202009,117570.0,117560.0,0.07415894]
[1754733693949,0.58202009,117570.0,117560.0,0.04721894]
[1754733694345,0.94282009,117570.0,117560.0,0.01733894]
[1754733694644,1.11294009,117570.0,117560.0,0.01733894]
[1754733694851,1.94694009,117570.0,117560.0,0.01733894]
[1754733695147,0.03111,117540.0,117530.0,0.97665979]
[1754733695354,0.15334,117540.0,117530.0,1.87781048]
[1754733695550,0.15334,117540.0,117530.0,1.53417219]
[1754733695846,0.15334,117540.0,117530.0,1.87781048]
[1754733696051,0.15334,117540.0,117530.0,1.53417219]
[1754733696251,0.15334,117540.0,117530.0,1.87781048]
[1754733696848,0.15334,117540.0,117530.0,1.88381048]
[1754733697046,0.0850563,117550.0,117540.0,0.0850635]
[1754733697244,0.11089815,117560.0,117550.0,0.1399763]
[1754733697550,0.09050815,117560.0,117550.0,1.67825459]
[1754733697739,0.14941815,117560.0,117550.0,1.67825459]
[1754733698254,0.14941815,117560.0,117550.0,1.31745459]
[1754733698548,0.14941815,117560.0,117550.0,1.67825459]
[1754733699746,0.14941815,117560.0,117550.0,1.3346163]
[1754733699939,0.25685725,117560.0,117550.0,1.67825459]
[1754733700345,0.17180815,117560.0,117550.0,1.3346163]
[1754733701049,0.17480815,117560.0,117550.0,1.3346163]
[1754733703455,0.17480815,117560.0,117550.0,1.67825459]
[1754733703756,0.25985725,117560.0,117550.0,1.67825459]
[1754733703950,0.25985725,117560.0,117550.0,1.59319829]
[1754733704456,0.25985725,117560.0,117550.0,1.3346163]
[1754733704658,0.25985725,117560.0,117550.0,1.24956]
[1754733705255,0.25985725,117560.0,117550.0,1.3346163]
[1754733705459,0.25985725,117560.0,117550.0,1.24956]
[1754733705757,0.25985725,117560.0,117550.0,1.3346162]
[1754733706155,0.25985725,117560.0,117550.0,1.22003]
[1754733706351,0.60349554,117560.0,117550.0,1.19464]
[1754733706552,0.60349554,117560.0,117550.0,0.3608]
[1754733706748,0.1453762,117550.0,117540.0,0.9467734]
[1754733706952,0.2356062,117550.0,117540.0,0.9467734]
[1754733707258,0.15055,117550.0,117540.0,1.31694169]
[1754733707861,0.2356062,117550.0,117540.0,0.9733034]
[1754733708063,0.2356062,117550.0,117540.0,1.31694169]
[1754733708862,0.2356062,117550.0,117540.0,0.9733034]
[1754733709162,0.2356062,117550.0,117540.0,1.31694169]
[1754733711656,0.2356062,117550.0,117540.0,0.9743034]
[1754733711859,0.15055,117550.0,117540.0,1.67874169]
[1754733712158,0.02323,117550.0,117540.0,1.67874169]
[1754733712364,0.25485775,117560.0,117550.0,0.1399763]
[1754733712561,0.25485775,117560.0,117550.0,0.39855829]
[1754733712762,0.05057815,117560.0,117550.0,0.48361459]
[1754733712962,0.13562715,117560.0,117550.0,0.48361459]
[1754733713358,0.18682715,117560.0,117550.0,0.48361459]
[1754733713655,0.25485715,117560.0,117550.0,0.48361459]
[1754733713867,0.25585715,117560.0,117550.0,0.48361459]
[1754733714668,0.17180815,117560.0,117550.0,0.48361459]
[1754733714965,0.25685715,117560.0,117550.0,0.48361459]
[1754733715564,0.25685715,117560.0,117550.0,0.1399763]
[1754733716965,0.60049544,117560.0,117550.0,0.02839]
[1754733717166,0.96129544,117560.0,117550.0,0.02839]
[1754733717366,0.2356061,117550.0,117540.0,1.088506]
[1754733717565,0.57924439,117550.0,117540.0,0.9419618]
[1754733717771,0.2356061,117550.0,117540.0,0.9467718]
[1754733718463,0.2356061,117550.0,117540.0,1.31694009]
[1754733718661,0.2356061,117550.0,117540.0,1.31794009]
[1754733719170,0.15055,117550.0,117540.0,1.31794009]
[1754733719372,0.2356062,117550.0,117540.0,1.31794009]
[1754733720068,0.2356062,117550.0,117540.0,0.9743018]
[1754733720273,0.2356062,117550.0,117540.0,1.31794009]
[1754733721882,0.2356062,117550.0,117540.0,0.9399618]
[1754733722082,0.57924449,117550.0,117540.0,0.001]
[1754733724281,0.2356062,117550.0,117540.0,0.001]
[1754733724585,0.57924449,117550.0,117540.0,0.001]
[1754733725179,0.57924449,117550.0,117540.0,0.0860635]
[1754733725379,0.57924449,117550.0,117540.0,0.0890635]
[1754733726284,0.2356062,117550.0,117540.0,0.0890635]
[1754733726483,0.11619,117550.0,117540.0,0.45809179]
[1754733726677,0.09164,117550.0,117540.0,0.48348179]
[1754733726984,0.14883,117550.0,117540.0,0.48348179]
[1754733729487,0.2338862,117550.0,117540.0,0.48348179]
[1754733729788,0.14883,117550.0,117540.0,0.48348179]
[1754733730687,0.2338862,117550.0,117540.0,0.48348179]
[1754733730883,0.2338861,117550.0,117540.0,0.48348179]
[1754733731691,0.14883,117550.0,117540.0,0.48348179]
[1754733731986,0.14877,117550.0,117540.0,0.48348179]
[1754733733183,0.2338261,117550.0,117540.0,0.48348179]
[1754733733592,0.2338261,117550.0,117540.0,0.1398435]
[1754733733791,0.14877,117550.0,117540.0,0.48348179]
[1754733735582,0.97885454,117560.0,117540.0,0.51429179]
[1754733735583,0.01925815,117560.0,117540.0,0.51429179]
[1754733735883,0.01925815,117560.0,117550.0,1.64455449]
[1754733737388,0.02025815,117560.0,117550.0,1.64455449]
[1754733737586,0.02125815,117560.0,117550.0,1.64455449]
[1754733737987,0.05236815,117560.0,117550.0,1.64455449]
[1754733738189,0.05136815,117560.0,117550.0,1.64455449]
[1754733738491,0.05136815,117560.0,117550.0,1.72100593]
[1754733738991,0.05136815,117560.0,117550.0,1.72200593]
[1754733740197,0.05036815,117560.0,117550.0,1.72400593]
[1754733743198,0.05036815,117560.0,117550.0,1.64755449]
[1754733743492,0.05036815,117560.0,117550.0,1.7545157]
[1754733744296,0.05036815,117560.0,117550.0,1.64755449]
[1754733744687,0.05036815,117560.0,117550.0,1.72377948]
[1754733746692,0.15686554,117580.0,117550.0,1.72377948]
[1754733746890,0.11592,117590.0,117580.0,0.1580645]
[1754733747090,0.11592,117590.0,117580.0,0.50170279]
[1754733747594,0.11592,117590.0,117580.0,0.1580645]
[1754733747791,0.11592,117590.0,117580.0,0.50170279]
[1754733747997,0.11792,117590.0,117580.0,0.50170279]
[1754733748997,0.15056,117590.0,117580.0,0.50170279]
[1754733749193,0.15056,117590.0,117580.0,0.86250279]
[1754733749894,0.2375873,117590.0,117580.0,0.86250279]
[1754733750489,0.2355873,117590.0,117580.0,0.86250279]
[1754733750690,0.2345873,117590.0,117580.0,0.50170279]
[1754733750894,0.2355873,117590.0,117580.0,0.86250279]
[1754733751485,0.2355873,117590.0,117580.0,0.50170279]
[1754733752295,0.57922559,117590.0,117580.0,0.0850345]
[1754733752493,0.1452946,117580.0,117570.0,1.63842709]
[1754733752688,0.57723289,117580.0,117570.0,1.27762709]
[1754733752894,0.57723289,117580.0,117570.0,1.10754839]
[1754733753195,0.93803289,117580.0,117570.0,0.20668769]
[1754733753400,0.57723289,117580.0,117570.0,0.20668769]
[1754733753902,0.57723289,117580.0,117570.0,0.20768769]
[1754733754799,0.2335946,117580.0,117570.0,0.20768769]
[1754733755099,0.57723289,117580.0,117570.0,0.20768769]
[1754733756495,0.57723289,117580.0,117570.0,0.18640769]
[1754733756697,0.57723289,117580.0,117570.0,0.15376769]
[1754733756900,0.93803289,117580.0,117570.0,0.15376769]
[1754733757102,0.57723289,117580.0,117570.0,0.15376769]
[1754733758292,0.57723289,117580.0,117570.0,0.18640769]
[1754733758801,0.57723289,117580.0,117570.0,0.18540769]
[1754733759095,0.57823289,117580.0,117570.0,0.15276769]
[1754733759300,0.93903289,117580.0,117570.0,0.15276769]
[1754733759500,0.57823289,117580.0,117570.0,0.15276769]
[1754733760800,0.57923289,117580.0,117570.0,0.15276769]
[1754733761000,0.57923289,117580.0,117570.0,0.22724769]
[1754733761200,0.2355946,117580.0,117570.0,0.93168598]
[1754733761592,0.03311,117580.0,117570.0,0.93168598]
[1754733762495,0.03311,117580.0,117570.0,1.00791097]
[1754733762802,0.03211,117580.0,117570.0,1.00891097]
[1754733763505,0.001,117580.0,117570.0,1.00891097]
[1754733763896,0.001,117580.0,117570.0,0.93268598]
[1754733764301,0.001,117580.0,117570.0,1.00888705]
[1754733764499,0.06636,117590.0,117580.0,0.1477146]
[1754733764696,0.2291674,117590.0,117580.0,1.76850178]
[1754733764896,0.2291674,117590.0,117580.0,1.69227289]
[1754733765500,0.14414,117590.0,117580.0,1.69227289]
[1754733765804,0.14614,117590.0,117580.0,1.69227289]
[1754733766703,0.2311673,117590.0,117580.0,1.69227289]
[1754733767807,0.2311673,117590.0,117580.0,1.3486346]
[1754733768007,0.2311673,117590.0,117580.0,1.69227289]
[1754733768209,0.14614,117590.0,117580.0,1.69227289]
[1754733769502,0.2311673,117590.0,117580.0,1.69227289]
[1754733770204,0.2311673,117590.0,117580.0,1.33147289]
[1754733770408,0.2311673,117590.0,117580.0,0.9878346]
[1754733771810,0.2311673,117590.0,117580.0,1.3486346]
[1754733772005,0.2311673,117590.0,117580.0,0.9878346]
[1754733772405,0.2311673,117590.0,117580.0,1.3486346]
[1754733773008,0.57480559,117590.0,117580.0,1.3486346]
[1754733773706,0.2311673,117590.0,117580.0,1.3486346]
[1754733774409,0.2311673,117590.0,117580.0,0.5203146]
[1754733775210,0.57480559,117590.0,117580.0,0.5203146]
[1754733775712,0.2311673,117590.0,117580.0,0.5203146]
[1754733776012,0.57480559,117590.0,117580.0,0.5203146]
[1754733777705,0.57480559,117590.0,117580.0,0.0850346]
[1754733778111,0.57480559,117590.0,117580.0,0.1477146]
[1754733778313,0.57480559,117590.0,117580.0,0.1595146]
[1754733779307,0.2311673,117590.0,117580.0,0.1595146]
[1754733780314,0.1756773,117590.0,117580.0,0.5203146]
[1754733780614,0.2311673,117590.0,117580.0,0.5203146]
[1754733782017,0.2311673,117590.0,117580.0,0.86395289]
[1754733782415,0.2311673,117590.0,117580.0,0.50315289]
[1754733782615,0.2311673,117590.0,117580.0,0.86395289]
[1754733783110,0.2311673,117590.0,117580.0,0.5203146]
[1754733783416,0.2311673,117590.0,117580.0,0.86395289]
[1754733783611,0.2311674,117590.0,117580.0,0.86395289]
[1754733784917,0.2311674,117590.0,117580.0,0.5203146]
[1754733785116,0.2311674,117590.0,117580.0,0.86395289]
[1754733786918,0.14614,117590.0,117580.0,0.86395289]
[1754733787412,0.002,117590.0,117580.0,0.86395289]
[1754733787817,0.01861443,117600.0,117590.0,0.1557073]
[1754733788008,0.01861443,117600.0,117590.0,1.76260995]
[1754733788210,0.01861443,117600.0,117590.0,1.68634559]
[1754733788407,0.01861443,117600.0,117590.0,1.76256638]
[1754733788720,0.01861443,117600.0,117590.0,1.68634559]
[1754733789412,0.01861443,117600.0,117590.0,1.76353214]
[1754733790015,0.01861443,117600.0,117590.0,1.68734559]
[1754733790223,0.01861443,117600.0,117590.0,1.7943068]
[1754733790915,0.04748443,117600.0,117590.0,1.7943068]
[1754733791413,0.04748443,117600.0,117590.0,1.7973068]
[1754733791620,0.04748443,117600.0,117590.0,0.9711068]
[1754733791819,0.13864443,117600.0,117590.0,1.7969068]
[1754733792619,0.08265443,117600.0,117590.0,1.7969068]
[1754733795422,0.13864443,117600.0,117590.0,1.76608257]
[1754733796125,0.08265443,117600.0,117590.0,1.76608257]
[1754733797930,0.13864443,117600.0,117590.0,1.76608257]
[1754733799126,0.08265443,117600.0,117590.0,1.76608257]
[1754733800831,0.08265443,117600.0,117590.0,1.40528257]
[1754733801030,0.08265443,117600.0,117590.0,1.76608257]
[1754733805540,0.04748443,117600.0,117590.0,1.76608257]
[1754733806034,0.16031443,117600.0,117590.0,1.76608257]
[1754733806235,0.16031443,117600.0,117590.0,1.68994559]
[1754733806630,0.10432443,117600.0,117590.0,0.86414559]
[1754733806835,0.10432443,117600.0,117590.0,1.68858559]
[1754733807135,0.16031443,117600.0,117590.0,1.68858559]
[1754733807638,0.16031443,117600.0,117590.0,1.3449473]
[1754733807837,0.16031443,117600.0,117590.0,1.68858559]
[1754733810441,0.08265443,117600.0,117590.0,1.68858559]
[1754733810631,0.06705443,117600.0,117590.0,1.68858559]
[1754733812226,0.08265443,117600.0,117590.0,1.68858559]
[1754733812531,0.10662443,117600.0,117590.0,1.68858559]
[1754733813539,0.10662443,117600.0,117590.0,1.76472257]
[1754733813738,0.08265443,117600.0,117590.0,1.76472257]
[1754733815342,0.04748443,117600.0,117590.0,1.76472257]
[1754733815639,0.01861443,117600.0,117590.0,1.76472257]
[1754733816042,0.01861443,117600.0,117590.0,1.68858559]
[1754733816238,0.01861443,117600.0,117590.0,1.7955468]
[1754733816541,0.04965443,117600.0,117590.0,1.7955468]
[1754733817640,0.01861443,117600.0,117590.0,1.68858559]
[1754733818140,0.04965443,117600.0,117590.0,1.68858559]
[1754733818840,0.04965443,117600.0,117590.0,1.79542515]
[1754733820140,0.04965443,117600.0,117590.0,1.68858559]
[1754733824043,0.04965443,117600.0,117590.0,1.79540281]
[1754733824446,0.04494919,117620.0,117610.0,0.1349428]
[1754733824743,0.06924919,117620.0,117610.0,1.79500685]
[1754733824945,0.21863851,117630.0,117620.0,0.1913956]
[1754733825244,0.21863851,117630.0,117620.0,0.5521956]
[1754733825444,0.22273851,117630.0,117620.0,0.1913956]
[1754733825736,0.22273851,117630.0,117620.0,0.5521956]
[1754733826144,0.22273851,117630.0,117620.0,0.1913956]
[1754733826440,0.22273851,117630.0,117620.0,0.5521956]
[1754733826650,0.25377851,117630.0,117620.0,0.1913956]
[1754733826842,0.25377851,117630.0,117620.0,0.5521956]
[1754733827335,0.25377851,117630.0,117620.0,0.5858171]
[1754733828243,0.25477851,117630.0,117620.0,0.5858171]
[1754733828643,0.25267851,117630.0,117620.0,0.5858171]
[1754733829245,0.25267851,117630.0,117620.0,0.2250171]
[1754733833547,0.5963168,117630.0,117620.0,0.2048071]
[1754733833748,0.25267851,117630.0,117620.0,0.2048071]
[1754733833952,0.25677851,117630.0,117620.0,0.92945539]
[1754733834149,0.25677851,117630.0,117620.0,0.5858171]
[1754733834650,0.25677851,117630.0,117620.0,1.00574115]
[1754733835441,0.25677851,117630.0,117620.0,0.66210286]
[1754733835648,0.25677851,117630.0,117620.0,1.00574115]
[1754733836241,0.25677851,117630.0,117620.0,0.92945539]
[1754733836846,0.25677851,117630.0,117620.0,0.5858171]
[1754733837046,0.25677851,117630.0,117620.0,0.2250171]
[1754733838046,0.25677851,117630.0,117620.0,0.5858171]
[1754733838743,0.25677851,117630.0,117620.0,0.2250171]
[1754733838949,0.25677851,117630.0,117620.0,0.5858171]